fUSD/lending_fUSD_20241004
["ID","MTS","AMOUNT","RATE_DAILY","PERIOD"]
[339852547,1728067844043,-500.0,0.00038356,120]
[339852548,1728067844053,-500.0,0.00038356,120]
[339852549,1728067844063,-500.0,0.00038356,120]
[339852550,1728067844072,-500.0,0.00038356,120]
[339852551,1728067844082,-691.95,0.00038356,120]
[339852552,1728067844092,-500.0,0.00038356,120]
[339852553,1728067844103,-500.0,0.00038356,120]
[339852554,1728067844112,-1572.1,0.00038356,120]
[339852555,1728067844122,-2095.16,0.00038356,120]
[339852556,1728067844131,-500.0,0.00038356,120]
[339852557,1728067844140,-1030.87,0.00038356,120]
[339852558,1728067844150,-500.0,0.00038356,120]
[339852559,1728067844159,-278.20043618,0.00038356,120]
[339852560,1728067844171,-610.63547152,0.00038356,120]
[339852561,1728067844181,-500.0,0.00038356,120]
[339852562,1728067844190,-2406.4,0.00038356,120]
[339852563,1728067844201,-1664.8,0.00038356,120]
[339852564,1728067844211,-500.0,0.00038356,120]
[339852565,1728067844222,-901.57,0.00038356,120]
[339852566,1728067844231,-500.0,0.00038356,120]
[339852567,1728067844242,-500.0,0.00038356,120]
[339852568,1728067844253,-616.67,0.00038356,120]
[339852569,1728067844264,-500.0,0.00038356,120]
[339852570,1728067844274,-500.0,0.00038356,120]
[339852571,1728067844284,-500.0,0.00038356,120]
[339852572,1728067844294,-479.00382993,0.00038356,120]
[339852573,1728067844303,-776.89,0.00038356,120]
[339852574,1728067844313,-977.02,0.00038356,120]
[339852575,1728067844322,-500.0,0.00038356,120]
[339852576,1728067844332,-1633.77,0.00038356,120]
[339852577,1728067844341,-699.72,0.00038356,120]
[339852578,1728067844352,-576.6,0.00038356,120]
[339852579,1728067844364,-500.0,0.00038356,120]
[339852580,1728067844373,-851.61,0.00038356,120]
[339852581,1728067844383,-833.77,0.00038356,120]
[339852582,1728067844393,-500.0,0.00038356,120]
[339852583,1728067844404,-718.54,0.00038356,120]
[339852584,1728067844414,-500.0,0.00038356,120]
[339852585,1728067844424,-500.0,0.00038356,120]
[339852586,1728067844434,-500.0,0.00038356,120]
[339852587,1728067844445,-1883.25,0.00038356,120]
[339852588,1728067844454,-500.0,0.00038356,120]
[339852589,1728067844463,-500.0,0.00038356,120]
[339852590,1728067844472,-592.51,0.00038356,120]
[339852591,1728067844524,-500.0,0.00038356,120]
[339852592,1728067844533,-714.22,0.00038356,120]
[339852593,1728067844551,-500.0,0.00038356,120]
[339852594,1728067844560,-500.0,0.00038356,120]
[339852595,1728067844569,-712.09,0.00038356,120]
[339852596,1728067844578,-823.17,0.00038356,120]
[339852597,1728067844587,-500.0,0.00038356,120]
[339852598,1728067844595,-500.0,0.00038356,120]
[339852599,1728067844605,-1612.75,0.00038356,120]
[339852600,1728067844614,-961.06,0.00038356,120]
[339852601,1728067844624,-739.42,0.00038356,120]
[339852602,1728067844633,-2240.59,0.00038356,120]
[339852603,1728067844642,-500.0,0.00038356,120]
[339852604,1728067844652,-500.0,0.00038356,120]
[339852605,1728067844661,-500.0,0.00038356,120]
[339852606,1728067844670,-3187.61,0.00038356,120]
[339852607,1728067844679,-500.0,0.00038356,120]
[339852608,1728067844688,-639.33,0.00038356,120]
[339852609,1728067844697,-500.0,0.00038356,120]
[339852610,1728067844707,-944.77,0.00038356,120]
[339852611,1728067844717,-500.0,0.00038356,120]
[339852612,1728067844726,-1334.13,0.00038356,120]
[339852613,1728067844735,-500.0,0.00038356,120]
[339852614,1728067844745,-500.0,0.00038356,120]
[339852615,1728067844754,-585.93,0.00038356,120]
[339852616,1728067844763,-500.0,0.00038356,120]
[339852617,1728067844772,-500.0,0.00038356,120]
[339852618,1728067844781,-578.13,0.00038356,120]
[339852619,1728067844792,-500.0,0.00038356,120]
[339852620,1728067844801,-1383.2,0.00038356,120]
[339852621,1728067844810,-500.0,0.00038356,120]
[339852622,1728067844819,-500.0,0.00038356,120]
[339852623,1728067844828,-160.33849944,0.00038356,120]
[339852624,1728067844837,-500.0,0.00038356,120]
[339852625,1728067844845,-209.57346979,0.00038356,120]
[339852626,1728067844855,-553.31,0.00038356,120]
[339852627,1728067844864,-733.59,0.00038356,120]
[339852628,1728067844873,-500.0,0.00038356,120]
[339852629,1728067844882,-500.0,0.00038356,120]
[339852630,1728067844891,-500.0,0.00038356,120]
[339852631,1728067844901,-500.0,0.00038356,120]
[339852632,1728067844910,-500.0,0.00038356,120]
[339852633,1728067844919,-1122.04,0.00038356,120]
[339852634,1728067844928,-500.0,0.00038356,120]
[339852635,1728067844937,-972.12,0.00038356,120]
[339852636,1728067844946,-2264.45,0.00038356,120]
[339852637,1728067844955,-699.02,0.00038356,120]
[339852638,1728067844964,-500.0,0.00038356,120]
[339852639,1728067844973,-500.0,0.00038356,120]
[339852640,1728067844982,-232.26,0.00038356,120]
[339852641,1728067844991,-510.12,0.00038356,21]
[339852642,1728067845000,-754.29,0.00038356,120]
[339852643,1728067845009,-500.0,0.00038356,120]
[339852644,1728067845018,-687.29,0.00038356,120]
[339852645,1728067845027,-591.14162856,0.00038356,120]
[339852646,1728067845036,-555.0,0.00038356,120]
[339852647,1728067845051,-500.0,0.00038356,120]
[339852648,1728067845061,-1636.81,0.00038356,120]
[339852649,1728067845070,-526.36,0.00038356,120]
[339852650,1728067845079,-605.04,0.00038356,120]
[339852651,1728067845089,-1378.16,0.00038356,120]
[339852652,1728067845097,-501.15,0.00038356,120]
[339852653,1728067845106,-500.0,0.00038356,120]
[339852654,1728067845115,-500.0,0.00038356,120]
[339852655,1728067845124,-1156.79,0.00038356,120]
[339852656,1728067845133,-500.0,0.00038356,120]
[339852657,1728067845142,-500.0,0.00038356,120]
[339852658,1728067845151,-681.1,0.00038356,120]
[339852659,1728067845161,-1399.48,0.00038356,120]
[339852660,1728067845175,-500.0,0.00038356,120]
[339852661,1728067845185,-500.0,0.00038356,120]
[339852662,1728067845193,-1436.75,0.00038356,120]
[339852663,1728067845203,-500.0,0.00038356,120]
[339852664,1728067845212,-500.0,0.00038356,120]
[339852665,1728067845221,-643.3,0.00038356,120]
[339852666,1728067845230,-500.0,0.00038356,120]
[339852667,1728067845239,-506.98,0.00038356,120]
[339852668,1728067845249,-500.0,0.00038356,120]
[339852669,1728067845258,-500.0,0.00038356,120]
[339852670,1728067845267,-500.0,0.00038356,120]
[339852671,1728067845276,-500.0,0.00038356,120]
[339852672,1728067845287,-500.0,0.00038356,2]
[339852673,1728067845296,-1420.32,0.00038356,120]
[339852674,1728067845306,-500.0,0.00038356,120]
[339852675,1728067845315,-1773.56,0.00038356,120]
[339852676,1728067845324,-500.0,0.00038356,120]
[339852677,1728067845334,-500.0,0.00038356,120]
[339852678,1728067845344,-500.0,0.00038356,120]
[339852679,1728067845354,-500.0,0.00038356,120]
[339852680,1728067845363,-747.43,0.00038356,120]
[339852681,1728067845372,-952.81,0.00038356,120]
[339852682,1728067845383,-500.0,0.00038356,120]
[339852683,1728067845392,-3023.49412974,0.00038509,10]
[339852684,1728067845402,-175.57734159,0.0003853,2]
[339852685,1728067845411,-479.68061526,0.0003853,2]
[339852686,1728067845420,-9328.32436283,0.00038589,6]
[339852687,1728067845433,-18656.6487257,0.00038591,6]
[339852688,1728067845442,-9328.32436283,0.00038599,6]
[339852689,1728067845451,-800.0,0.000386,14]
[339852690,1728067845460,-31610.20182666,0.000386,6]
[339852691,1728067845740,-2430.0,0.000386,6]
[339852710,1728067846560,-500.0,0.00038356,120]
[339852711,1728067846570,-106.25,0.00038356,120]
[339852712,1728067846581,-393.75,0.00038356,120]
[339852713,1728067846591,-2011.25,0.000386,6]
[339852714,1728067846602,-38575.14307594,0.000386,6]
[339852715,1728067846611,-171.48637453,0.000386,2]
[339852716,1728067846620,-9328.32436283,0.00038609,6]
[339852717,1728067846630,-14768.3554523,0.00038609,6]
[339852718,1728067846639,-4972.19033313,0.0003861,6]
[339852719,1728067846659,-267.41400148,0.0003861,6]
[339852777,1728068531767,159.32,0.00010959,2]
[339852793,1728069032361,-300.0,0.00019725,2]
[339852795,1728069032377,-37.01913656,0.00021484,2]
[339852796,1728069032388,-382.98086344,0.00021484,2]
[339852797,1728069032397,-901.42889707,0.000325,3]
[339852798,1728069032408,-405.84115355,0.000325,3]
[339852799,1728069032507,-1695.2818,0.000325,3]
[339852800,1728069032657,-8509.44814938,0.000325,3]
[339852802,1728069032668,-1080.99860329,0.000328,120]
[339852842,1728069038549,-852.87039671,0.000328,120]
[339852843,1728069038559,-177.589,0.000329,34]
[339852844,1728069038569,-1690.25091406,0.000329,2]
[339852845,1728069038579,-11513.0,0.000335,5]
[339852846,1728069038588,-339.7,0.00033593,2]
[339852847,1728069038598,-3335.0,0.000347,4]
[339852848,1728069038608,-499.99,0.000347,2]
[339852849,1728069038619,-150.99,0.000347,2]
[339852851,1728069038632,-396.65,0.000347,2]
[339852853,1728069038641,-1000.0,0.00035,20]
[339852855,1728069038652,-1000.0,0.00035,20]
[339852857,1728069038662,-1019.0,0.00035,20]
[339852859,1728069038674,-1000.0,0.00035,21]
[339852861,1728069038684,-1000.0,0.00035,21]
[339852863,1728069038694,-500.0,0.0003522,2]
[339852865,1728069038703,-1500.0,0.00035284,2]
[339852867,1728069038713,-457.09,0.0003554,2]
[339852869,1728069038723,-250.0,0.00035567,120]
[339852871,1728069038735,-205.01,0.0003561,2]
[339852873,1728069038746,-640.0,0.00035641,2]
[339852875,1728069038757,-253.79,0.00035664,2]
[339852877,1728069038767,-5035.91,0.00035699,2]
[339852879,1728069038776,-209.14,0.0003575,2]
[339852882,1728069038786,-155.58,0.00035837,120]
[339852885,1728069038795,-339.7,0.00035857,2]
[339852887,1728069038806,-250.0,0.00035862,2]
[339852890,1728069038815,-150.0,0.00035999,2]
[339852892,1728069038825,-1000.0,0.00036,19]
[339852894,1728069038834,-1000.0,0.00036,20]
[339852896,1728069038844,-1000.0,0.00036,18]
[339852899,1728069038855,-1000.0,0.00036,18]
[339852901,1728069038865,-477.20756348,0.0003601,2]
[339852903,1728069038880,-159.32,0.00036164,2]
[339852905,1728069038890,-420.08,0.00036741,2]
[339852907,1728069038902,-448.10548375,0.0003679,2]
[339852909,1728069038914,-1000.0,0.000368,20]
[339852911,1728069038923,-1000.0,0.000368,20]
[339852913,1728069038933,-1000.0,0.000368,24]
[339852915,1728069038943,-1000.0,0.000368,17]
[339852916,1728069038953,-1000.0,0.000368,17]
[339852917,1728069038962,-1000.0,0.000368,19]
[339852918,1728069038971,-1000.0,0.000368,19]
[339852919,1728069038981,-690.0674098,0.0003689,2]
[339852920,1728069038991,-163.46871667,0.0003689,2]
[339852921,1728069039000,-2821.92785434,0.00036899,9]
[339852922,1728069039010,-1000.0,0.000369,20]
[339852923,1728069039019,-1000.0,0.000369,20]
[339852924,1728069039029,-1000.0,0.000369,20]
[339852925,1728069039038,-502.56266119,0.000369,20]
[339852926,1728069039121,-497.43733881,0.000369,20]
[339852927,1728069039131,-131.37309734,0.000369,20]
[339852928,1728069039150,-868.62690266,0.000369,20]
[339852929,1728069039160,-1000.0,0.000369,20]
[339852930,1728069039169,-1000.0,0.000369,20]
[339852931,1728069039179,-1000.0,0.000369,20]
[339852932,1728069039191,-1000.0,0.000369,21]
[339852933,1728069039202,-1000.0,0.000369,21]
[339852934,1728069039212,-1000.0,0.000369,23]
[339852935,1728069039222,-1000.0,0.000369,23]
[339852936,1728069039232,-1000.0,0.000369,18]
[339852937,1728069039242,-1000.0,0.000369,19]
[339852938,1728069039252,-1000.0,0.000369,24]
[339852939,1728069039262,-1000.0,0.000369,22]
[339852940,1728069039272,-449.0,0.000369,21]
[339852941,1728069039282,-1000.0,0.000369,23]
[339852942,1728069039292,-1001.0,0.000369,22]
[339852943,1728069039302,-800.0,0.000369,13]
[339852944,1728069039312,-4924.87909461,0.000369,15]
[339852945,1728069039322,-208.73231144,0.00036902,11]
[339852946,1728069039332,-500.0,0.00036973,2]
[339852947,1728069039342,-500.0,0.00036973,5]
[339852948,1728069039352,-331.68886943,0.00036973,5]
[339852949,1728069039362,-182.5747858,0.00036989,15]
[339852950,1728069039378,-256261.028681,0.0003699,6]
[339852951,1728069039389,-167191.927245,0.0003699,6]
[339852952,1728069039398,-151.82,0.0003699,2]
[339852953,1728069039408,-300.0,0.00036999,30]
[339852954,1728069039419,-300.0,0.00036999,30]
[339852955,1728069039429,-300.0,0.00036999,30]
[339852956,1728069039439,-300.0,0.00036999,30]
[339852957,1728069039448,-500.0,0.00036999,15]
[339852958,1728069039458,-170.67796281,0.00036999,15]
[339852959,1728069039469,-1000.0,0.00036999,120]
[339852960,1728069039479,-81136.07120002,0.00037,15]
[339852961,1728069039488,-123710.98072325,0.00037,15]
[339852962,1728069039501,-31756.35000003,0.00037,15]
[339852967,1728069040605,-177.13,0.00035546,2]
[339852968,1728069040616,-822.76095873,0.00037,15]
[339852969,1728069040628,-864.91802564,0.00037,15]
[339852970,1728069040639,-511.5607658,0.00037,15]
[339852971,1728069040654,-376.6,0.00037,15]
[339852972,1728069040700,-326.335,0.00037,15]
[339852983,1728069043549,-23573.58376527,0.00037,15]
[339852990,1728069045679,-597.61986677,0.00037,15]
[339852991,1728069045866,-1583.50257652,0.00037,15]
[339852994,1728069561535,163.01,0.00010959,2]
[339852995,1728069908388,151354.47359442,0.00011,2]
[339852998,1728070077982,524186.67313495,0.00011,2]
[339852999,1728070084455,5580.59591328,0.0001283,7]
[339853049,1728070231531,-300.0,0.00019725,2]
[339853050,1728070231540,-420.0,0.00021484,2]
[339853051,1728070231550,-1933.869,0.000325,120]
[339853052,1728070231558,-1033.0,0.000325,4]
[339853054,1728070231568,-150.0,0.00033288,7]
[339853055,1728070231577,-325.35,0.00033643,2]
[339853056,1728070231587,-250.0,0.00035529,2]
[339853058,1728070231597,-200.0,0.0003554,2]
[339853060,1728070231606,-2751.0,0.00035543,2]
[339853061,1728070231615,-250.0,0.00035581,120]
[339853063,1728070231624,-201.0,0.00035636,2]
[339853064,1728070231634,-204.86,0.00035665,2]
[339853065,1728070231643,-499.99,0.00035665,2]
[339853066,1728070231653,-1205.99,0.00035665,2]
[339853067,1728070231662,-5040.40910926,0.0003567,2]
[339853068,1728070231678,-277.5783648,0.0003567,2]
[339853069,1728070231689,-2900.0,0.0003567,2]
[339853070,1728070231700,-700.0,0.0003567,2]
[339853071,1728070231728,-2014.04252594,0.0003567,2]
[339853072,1728070231738,-512.0,0.00035706,2]
[339853073,1728070231747,-166.44745396,0.00035734,120]
[339853074,1728070231759,-19.64254604,0.00035734,120]
[339853075,1728070231769,-165.96,0.00035861,2]
[339853076,1728070231778,-325.35,0.00035907,2]
[339853077,1728070231788,-1424.76968143,0.00036141,2]
[339853078,1728070231810,-49.89031857,0.00036141,2]
[339853079,1728070231819,-155.58,0.00036155,120]
[339853080,1728070231828,-299.67811858,0.00036177,2]
[339853081,1728070231840,-105.32188142,0.00036177,2]
[339853082,1728070231849,-428.77,0.00036178,2]
[339853083,1728070231858,-150.0,0.00036178,2]
[339853084,1728070231869,-150.57,0.00036178,2]
[339853085,1728070231879,-716.84,0.00036178,2]
[339853087,1728070231888,-301.48,0.00036178,2]
[339853088,1728070231898,-59.39165195,0.00036178,2]
[339853098,1728070237576,-90.60834805,0.00036178,2]
[339853099,1728070237587,-428.77,0.00036178,2]
[339853100,1728070237596,-150.0,0.00036178,2]
[339853101,1728070237606,-93.29016358,0.00036178,2]
[339853102,1728070237639,-335.47983642,0.00036178,2]
[339853103,1728070237649,-150.0,0.00036178,2]
[339853104,1728070237658,-150.0,0.00036178,2]
[339853105,1728070237667,-150.0,0.00036178,2]
[339853106,1728070237676,-428.77,0.00036178,2]
[339853107,1728070237685,-154.68,0.00036178,2]
[339853108,1728070237695,-150.0,0.00036178,2]
[339853109,1728070237704,-150.0,0.00036178,2]
[339853110,1728070237713,-428.77,0.00036178,2]
[339853111,1728070237722,-150.0,0.00036178,2]
[339853112,1728070237731,-428.77,0.00036178,2]
[339853113,1728070237740,-150.0,0.00036178,2]
[339853114,1728070237749,-428.77,0.00036178,2]
[339853115,1728070237759,-150.0,0.00036278,2]
[339853116,1728070237768,-150.0,0.00036278,2]
[339853117,1728070237777,-111.48601358,0.00036278,2]
[339853118,1728070237862,-38.51398642,0.00036278,2]
[339853119,1728070237872,-168.02,0.0003635,2]
[339853120,1728070237881,-488.0,0.00036475,2]
[339853121,1728070237891,-423.34,0.00036482,2]
[339853122,1728070237899,-754.24,0.00036482,2]
[339853123,1728070237909,-423.34,0.00036482,2]
[339853124,1728070237918,-423.34,0.00036482,2]
[339853126,1728070237927,-397.42913338,0.00036547,2]
[339853128,1728070237936,-203.97,0.00036616,120]
[339853130,1728070237945,-6909.63629706,0.0003662,2]
[339853131,1728070237955,-167.35,0.0003662,2]
[339853133,1728070237964,-700.0,0.000367,13]
[339853134,1728070237972,-2019.0,0.00036709,114]
[339853135,1728070237982,-150.0,0.00036756,2]
[339853136,1728070237991,-855.29,0.00036756,2]
[339853137,1728070238000,-150.0,0.00036756,2]
[339853138,1728070238009,-150.0,0.00036756,2]
[339853139,1728070238019,-150.0,0.00036756,2]
[339853140,1728070238028,-150.0,0.00036756,2]
[339853141,1728070238037,-1500.0,0.000368,13]
[339853142,1728070238046,-5556.62922054,0.00036889,15]
[339853143,1728070238056,-163.46871664,0.0003689,2]
[339853144,1728070238065,-404.3451791,0.000369,9]
[339853145,1728070238074,-2633.79933082,0.000369,9]
[339853146,1728070238084,-1251.28813603,0.000369,13]
[339853147,1728070238096,-1048.71186397,0.000369,13]
[339853148,1728070238106,-397.42913338,0.00036927,2]
[339853149,1728070238115,-736.73,0.00036966,2]
[339853150,1728070238124,-151.83,0.0003698,2]
[339853151,1728070238134,-171.48637452,0.0003698,2]
[339853152,1728070238143,-2220.23026599,0.00036988,120]
[339853153,1728070238152,-64.18236216,0.00036989,2]
[339853154,1728070238164,-106.05663784,0.00036989,2]
[339853155,1728070238173,-663.20124754,0.00036989,6]
[339853161,1728070239610,-323.888006,0.00036989,6]
[339853164,1728070239740,-5271.82066356,0.00036989,6]
[339853165,1728070239750,-177.589,0.00036989,47]
[339853166,1728070239761,-500.0,0.00036989,120]
[339853167,1728070239773,-4419.17,0.00036989,120]
[339853168,1728070239783,-500.0,0.00036989,120]
[339853169,1728070239792,-500.0,0.00036989,120]
[339853170,1728070239801,-1942.78,0.00036989,120]
[339853171,1728070239813,-826.89,0.00036989,120]
[339853172,1728070239823,-598.86,0.00036989,120]
[339853173,1728070239834,-506.43086973,0.00036989,120]
[339853174,1728070239846,-500.0,0.00036989,120]
[339853175,1728070239855,-500.0,0.00036989,120]
[339853177,1728070239864,-500.0,0.00036989,120]
[339853179,1728070239873,-500.0,0.00036989,14]
[339853181,1728070239883,-2193.59,0.00036989,120]
[339853183,1728070239894,-569.97,0.00036989,120]
[339853185,1728070239904,-500.0,0.00036989,120]
[339853187,1728070239913,-500.0,0.00036989,120]
[339853189,1728070239923,-500.0,0.00036989,120]
[339853191,1728070239932,-718.25,0.00036989,120]
[339853193,1728070239941,-500.0,0.00036989,120]
[339853195,1728070239951,-500.0,0.00036989,120]
[339853197,1728070239960,-500.0,0.00036989,120]
[339853199,1728070239969,-500.0,0.00036989,120]
[339853200,1728070239978,-500.0,0.00036989,120]
[339853202,1728070239987,-1738.0,0.00036989,120]
[339853204,1728070239996,-500.0,0.00036989,120]
[339853206,1728070240005,-2423.66,0.00036989,120]
[339853208,1728070240015,-225.01104514,0.00036989,120]
[339853210,1728070240024,-532.44,0.00036989,120]
[339853212,1728070240034,-3322.49,0.00036989,120]
[339853214,1728070240043,-1450.83,0.00036989,120]
[339853216,1728070240052,-500.0,0.00036989,120]
[339853218,1728070240061,-978.49,0.00036989,120]
[339853220,1728070240071,-500.0,0.00036989,120]
[339853222,1728070240080,-500.0,0.00036989,120]
[339853224,1728070240090,-597.15,0.00036989,120]
[339853226,1728070240099,-500.0,0.00036989,120]
[339853227,1728070240108,-500.0,0.00036989,120]
[339853229,1728070240118,-500.0,0.00036989,120]
[339853231,1728070240127,-500.0,0.00036989,120]
[339853233,1728070240136,-500.0,0.00036989,120]
[339853235,1728070240146,-500.0,0.00036989,120]
[339853237,1728070240155,-729.23,0.00036989,120]
[339853239,1728070240165,-500.0,0.00036989,120]
[339853241,1728070240174,-500.0,0.00036989,120]
[339853242,1728070240184,-500.0,0.00036989,120]
[339853244,1728070240193,-500.0,0.00036989,120]
[339853246,1728070240203,-500.0,0.00036989,120]
[339853248,1728070240212,-500.0,0.00036989,120]
[339853250,1728070240222,-500.0,0.00036989,120]
[339853252,1728070240231,-447.71211486,0.00036989,120]
[339853254,1728070240241,-500.0,0.00036989,120]
[339853256,1728070240250,-500.0,0.00036989,120]
[339853258,1728070240260,-377.26,0.00036989,120]
[339853260,1728070240269,-500.0,0.00036989,120]
[339853262,1728070240279,-500.0,0.00036989,120]
[339853264,1728070240288,-848.88,0.00036989,120]
[339853266,1728070240298,-500.0,0.00036989,120]
[339853268,1728070240307,-500.0,0.00036989,120]
[339853270,1728070240320,-500.0,0.00036989,120]
[339853272,1728070240330,-500.0,0.00036989,120]
[339853274,1728070240341,-740.5,0.00036989,120]
[339853276,1728070240351,-669.9,0.00036989,120]
[339853278,1728070240361,-500.0,0.00036989,21]
[339853280,1728070240370,-1320.74,0.00036989,120]
[339853282,1728070240380,-500.0,0.00036989,120]
[339853284,1728070240392,-500.0,0.00036989,120]
[339853285,1728070240401,-1341.17,0.00036989,120]
[339853287,1728070240411,-500.0,0.00036989,120]
[339853288,1728070240420,-500.0,0.00036989,120]
[339853289,1728070240431,-500.0,0.00036989,120]
[339853290,1728070240441,-658.55,0.00036989,120]
[339853291,1728070240450,-500.0,0.00036989,120]
[339853292,1728070240460,-555.2,0.00036989,120]
[339853293,1728070240471,-662.66,0.00036989,120]
[339853294,1728070240480,-500.0,0.00036989,120]
[339853295,1728070240490,-378.54509267,0.00036989,120]
[339853296,1728070240499,-500.0,0.00036989,120]
[339853297,1728070240508,-500.0,0.00036989,120]
[339853298,1728070240517,-1102.24,0.00036989,120]
[339853299,1728070240527,-500.0,0.00036989,120]
[339853300,1728070240537,-500.0,0.00036989,120]
[339853301,1728070240547,-500.0,0.00036989,120]
[339853302,1728070240557,-500.0,0.00036989,120]
[339853303,1728070240567,-688.6,0.00036989,120]
[339853304,1728070240576,-500.0,0.00036989,120]
[339853305,1728070240587,-306.81202352,0.00036989,120]
[339853306,1728070240596,-500.0,0.00036989,120]
[339853307,1728070240606,-500.0,0.00036989,120]
[339853308,1728070240615,-816.12,0.00036989,120]
[339853309,1728070240625,-2007.86,0.00036989,120]
[339853310,1728070240635,-500.0,0.00036989,120]
[339853311,1728070240645,-1545.55,0.00036989,120]
[339853312,1728070240655,-500.0,0.00036989,120]
[339853313,1728070240666,-500.0,0.00036989,120]
[339853314,1728070240675,-500.0,0.00036989,120]
[339853315,1728070240686,-500.0,0.00036989,120]
[339853316,1728070240697,-500.0,0.00036989,120]
[339853317,1728070240708,-612.7,0.00036989,120]
[339853318,1728070240717,-150.0,0.00036989,120]
[339853319,1728070240727,-500.0,0.00036989,120]
[339853320,1728070240737,-500.0,0.00036989,120]
[339853321,1728070240747,-500.0,0.00036989,7]
[339853322,1728070240756,-554.04,0.00036989,120]
[339853323,1728070240766,-500.0,0.00036989,120]
[339853324,1728070240777,-500.0,0.00036989,120]
[339853325,1728070240787,-500.0,0.00036989,120]
[339853326,1728070240797,-500.0,0.00036989,120]
[339853327,1728070240806,-1325.56,0.00036989,120]
[339853328,1728070240861,-500.0,0.00036989,120]
[339853329,1728070240870,-682.42,0.00036989,120]
[339853330,1728070240879,-530.25,0.00036989,120]
[339853331,1728070240889,-500.0,0.00036989,120]
[339853332,1728070240899,-2047.28,0.00036989,120]
[339853333,1728070240908,-500.0,0.00036989,120]
[339853334,1728070240918,-241.71056397,0.00036989,120]
[339853335,1728070240927,-500.0,0.00036989,120]
[339853336,1728070240937,-931.61,0.00036989,120]
[339853337,1728070240946,-1278.55,0.00036989,120]
[339853338,1728070240956,-1568.61,0.00036989,120]
[339853339,1728070240966,-500.0,0.00036989,120]
[339853340,1728070240975,-579.83,0.00036989,120]
[339853341,1728070240984,-500.0,0.00036989,120]
[339853342,1728070240994,-500.0,0.00036989,120]
[339853343,1728070241003,-500.0,0.00036989,120]
[339853344,1728070241012,-500.0,0.00036989,120]
[339853345,1728070241022,-500.3353,0.00036989,2]
[339853346,1728070241031,-500.0,0.00036989,120]
[339853347,1728070241040,-500.0,0.00036989,120]
[339853348,1728070241050,-1455.19,0.00036989,120]
[339853349,1728070241059,-1455.22,0.00036989,120]
[339853350,1728070241068,-500.0,0.00036989,120]
[339853351,1728070241078,-500.0,0.00036989,120]
[339853352,1728070241087,-500.0,0.00036989,120]
[339853353,1728070241097,-1075.28,0.00036989,120]
[339853354,1728070241108,-500.0,0.00036989,120]
[339853355,1728070241117,-616.5,0.00036989,120]
[339853356,1728070241128,-1699.66,0.00036989,120]
[339853357,1728070241137,-500.0,0.00036989,120]
[339853358,1728070241147,-219061.847099,0.0003699,6]
[339853359,1728070241157,-334822.516325,0.0003699,6]
[339853360,1728070241167,-151.83,0.0003699,2]
[339853361,1728070241176,-151.83,0.0003699,2]
[339853362,1728070241185,-151.83,0.0003699,2]
[339853363,1728070241194,-300.0,0.00036999,30]
[339853364,1728070241203,-300.0,0.00036999,30]